fUSD/lending_fUSD_20260607
["ID","MTS","AMOUNT","RATE_DAILY","PERIOD"]
[424323251,1780768289000,-182.87704749,0.00035,120]
[424323256,1780768289000,-281.74792979,0.00035,120]
[424323285,1780768289000,-400.0,0.00035,120]
[424323237,1780768289000,-50563.98905853,0.00035,8]
[424323231,1780768289000,-200.0,0.00034963,2]
[424323234,1780768289000,-1186.0,0.00034979,7]
[424323232,1780768289000,-169.0,0.00034963,2]
[424323236,1780768289000,-974.0,0.00034991,7]
[424323240,1780768289000,-192.987151,0.00035,120]
[424323239,1780768289000,-194.70598458,0.00035,120]
[424323233,1780768289000,-1444.0,0.00034966,7]
[424323235,1780768289000,-1000.0,0.00034982,30]
[424323238,1780768289000,-189.74650639,0.00035,120]
[424323258,1780768289000,-460.23029315,0.00035,120]
[424323242,1780768289000,-311.24645775,0.00035,120]
[424323252,1780768289000,-343.81844838,0.00035,120]
[424323241,1780768289000,-225.18122371,0.00035,120]
[424323243,1780768289000,-162.78507498,0.00035,120]
[424323244,1780768289000,-296.19721537,0.00035,120]
[424323249,1780768289000,-1183.73298945,0.00035,120]
[424323250,1780768289000,-1544.44983188,0.00035,120]
[424323246,1780768289000,-1200.1055665,0.00035,120]
[424323247,1780768289000,-1098.93627381,0.00035,120]
[424323245,1780768289000,-1093.4156204,0.00035,120]
[424323248,1780768289000,-220.64983343,0.00035,120]
[424323254,1780768289000,-219.86092195,0.00035,120]
[424323253,1780768289000,-946.47712584,0.00035,120]
[424323284,1780768289000,-28182.7,0.00035,120]
[424323297,1780768289000,-1005.643507,0.00035,120]
[424323288,1780768289000,-5000.0,0.00035,2]
[424323318,1780768289000,-3659.77720234,0.00035181,2]
[424323327,1780768289000,-1616.84076161,0.00035181,2]
[424323315,1780768289000,-1914.0,0.00035165,7]
[424323317,1780768289000,-4177.22514673,0.00035181,2]
[424323326,1780768289000,-2037.86239526,0.00035181,2]
[424323321,1780768289000,-1213.87591108,0.00035181,2]
[424323323,1780768289000,-1652.50580653,0.00035181,2]
[424323322,1780768289000,-2243.17596724,0.00035181,2]
[424323319,1780768289000,-3893.27503112,0.00035181,2]
[424323324,1780768289000,-2330.46015724,0.00035181,2]
[424323325,1780768289000,-1349.0007837,0.00035181,2]
[424323316,1780768289000,-1701.0,0.00035177,7]
[424323320,1780768289000,-3330.9636991,0.00035181,2]
[424323331,1780768289000,-1346.10419953,0.00035185,2]
[424323339,1780768289000,-2478.43,0.00035247,30]
[424323332,1780768289000,-1223.87838319,0.00035185,2]
[424323334,1780768289000,-1449.81808351,0.00035188,2]
[424323333,1780768289000,-1305.67135384,0.00035185,2]
[424323329,1780768289000,-1404.10687203,0.00035181,2]
[424323336,1780768289000,-2322.0,0.00035224,11]
[424323337,1780768289000,-2146.6994,0.00035226,2]
[424323335,1780768289000,-164.0,0.00035224,11]
[424323338,1780768289000,-1413.94902951,0.00035234,2]
[424323283,1780768289000,-3000.0,0.00035,60]
[424323330,1780768289000,-1308.95206358,0.00035181,2]
[424323312,1780768289000,-759.0,0.00035147,10]
[424323328,1780768289000,-1229.09494224,0.00035181,2]
[424323304,1780768289000,-1526.72,0.0003505,30]
[424323307,1780768289000,-2146.6994,0.00035067,2]
[424323286,1780768289000,-246.75,0.00035,2]
[424323287,1780768289000,-200755.09270661,0.00035,30]
[424323289,1780768289000,-5000.0,0.00035,2]
[424323290,1780768289000,-10000.0,0.00035,2]
[424323301,1780768289000,-8479.0,0.00035045,7]
[424323303,1780768289000,-1067.22,0.0003505,30]
[424323291,1780768289000,-349.72604658,0.00035,3]
[424323292,1780768289000,-200.0,0.00035,120]
[424323293,1780768289000,-1987.0,0.00035,2]
[424323296,1780768289000,-18497.30126047,0.00035,2]
[424323340,1780768289000,-14910.11,0.00035247,30]
[424323302,1780768289000,-1397.0,0.00035046,7]
[424323309,1780768289000,-2322.0,0.00035092,11]
[424323295,1780768289000,-1086.0,0.00035,7]
[424323298,1780768289000,-223.73,0.0003503,30]
[424323299,1780768289000,-8096.2173,0.00035033,2]
[424323294,1780768289000,-1987.0,0.00035,5]
[424323313,1780768289000,-2330.0,0.0003515,7]
[424323305,1780768289000,-6965.0,0.00035063,7]
[424323314,1780768289000,-8096.2173,0.00035158,2]
[424323311,1780768289000,-2485.50119236,0.00035119,2]
[424323306,1780768289000,-1100.0,0.00035067,60]
[424323310,1780768289000,-1000.0,0.00035115,30]
[424323300,1780768289000,-312.50663819,0.00035041,7]
[424323308,1780768289000,-320.0,0.00035068,37]
[424323389,1780768290000,-468.0,0.00035395,30]
[424323388,1780768290000,-2110.0,0.00035389,2]
[424323370,1780768290000,-185.04,0.00035342,2]
[424323382,1780768290000,-1737.88220088,0.00035356,2]
[424323383,1780768290000,-1333.33333333,0.00035356,2]
[424323384,1780768290000,-14212.44705825,0.00035362,2]
[424323368,1780768290000,-185.04,0.00035342,2]
[424323379,1780768290000,-166.23354408,0.00035353,30]
[424323380,1780768290000,-1314.09481489,0.00035356,2]
[424323377,1780768290000,-151.0,0.00035346,2]
[424323369,1780768290000,-545.42,0.00035342,2]
[424323385,1780768290000,-388.0,0.00035362,2]
[424323381,1780768290000,-1297.22481139,0.00035356,2]
[424323387,1780768290000,-2146.6994,0.00035384,2]
[424323400,1780768290000,-801.0,0.00035397,30]
[424323386,1780768290000,-388.0,0.00035381,2]
[424323391,1780768290000,-675.0,0.00035395,30]
[424323401,1780768290000,-1747.0,0.00035397,30]
[424323393,1780768290000,-4110.0,0.00035397,30]
[424323394,1780768290000,-948.0,0.00035397,30]
[424323402,1780768290000,-408.0,0.00035397,30]
[424323392,1780768290000,-2972.0,0.00035395,30]
[424323390,1780768290000,-1092.0,0.00035395,30]
[424323397,1780768290000,-706.0,0.00035397,30]
[424323395,1780768290000,-585.0,0.00035397,30]
[424323396,1780768290000,-4082.0,0.00035397,30]
[424323399,1780768290000,-4288.0,0.00035397,30]
[424323367,1780768290000,-378.0,0.00035335,2]
[424323378,1780768290000,-1000.0,0.00035353,30]
[424323371,1780768290000,-575.26,0.00035342,2]
[424323351,1780768290000,-3000.0,0.00035267,30]
[424323376,1780768290000,-2344.4299,0.00035345,2]
[424323341,1780768290000,-982.7085755,0.00035249,120]
[424323349,1780768290000,-3000.0,0.00035267,30]
[424323350,1780768290000,-3000.0,0.00035267,30]
[424323403,1780768290000,-161.07028204,0.00035397,30]
[424323342,1780768290000,-801.36233137,0.00035266,120]
[424323345,1780768290000,-3000.0,0.00035267,30]
[424323352,1780768290000,-3000.0,0.00035267,30]
[424323344,1780768290000,-3000.0,0.00035267,30]
[424323343,1780768290000,-509.51163418,0.00035266,120]
[424323346,1780768290000,-3000.0,0.00035267,30]
[424323347,1780768290000,-3000.0,0.00035267,30]
[424323348,1780768290000,-3000.0,0.00035267,30]
[424323353,1780768290000,-3000.0,0.00035267,30]
[424323357,1780768290000,-3000.0,0.00035267,30]
[424323356,1780768290000,-3000.0,0.00035267,30]
[424323355,1780768290000,-3000.0,0.00035267,30]
[424323354,1780768290000,-3000.0,0.00035267,30]
[424323363,1780768290000,-168854.39686211,0.000353,2]
[424323364,1780768290000,-50146.7329876,0.000353,2]
[424323362,1780768290000,-150.0,0.00035285,2]
[424323361,1780768290000,-150.0,0.00035285,2]
[424323358,1780768290000,-3000.0,0.00035267,30]
[424323360,1780768290000,-150.0,0.00035285,2]
[424323359,1780768290000,-8096.2173,0.00035282,2]
[424323366,1780768290000,-2322.0,0.00035333,11]
[424323373,1780768290000,-573.03,0.00035342,2]
[424323374,1780768290000,-643.95,0.00035342,2]
[424323375,1780768290000,-2000.0,0.00035345,7]
[424323372,1780768290000,-151.0,0.00035342,2]
[424323365,1780768290000,-1000.0,0.00035319,30]
[424323408,1780768290000,-151.0,0.00035398,2]
[424323398,1780768290000,-800.0,0.00035397,30]
[424323405,1780768290000,-151.0,0.00035398,2]
[424323439,1780768290000,-575.26,0.00035398,2]
[424323436,1780768290000,-396.06,0.00035398,2]
[424323435,1780768290000,-185.04,0.00035398,2]
[424323442,1780768290000,-575.26,0.00035398,2]
[424323444,1780768290000,-1933.7,0.000354,30]
[424323456,1780768290000,-573.03,0.00035401,2]
[424323457,1780768290000,-396.06,0.00035401,2]
[424323450,1780768290000,-185.04,0.00035401,2]
[424323447,1780768290000,-185.04,0.00035401,2]
[424323445,1780768290000,-151.0,0.00035401,2]
[424323455,1780768290000,-482.18,0.00035401,2]
[424323449,1780768290000,-151.0,0.00035401,2]
[424323454,1780768290000,-151.0,0.00035401,2]
[424323448,1780768290000,-643.95,0.00035401,2]
[424323441,1780768290000,-185.04,0.00035398,2]
[424323451,1780768290000,-643.95,0.00035401,2]
[424323446,1780768290000,-575.32,0.00035401,2]
[424323453,1780768290000,-396.06,0.00035401,2]
[424323458,1780768290000,-482.15,0.00035401,2]
[424323460,1780768290000,-643.95,0.00035401,2]
[424323462,1780768290000,-315.9,0.00035401,2]
[424323461,1780768290000,-575.32,0.00035401,2]
[424323463,1780768290000,-573.03,0.00035401,2]
[424323465,1780768290000,-263.84,0.00035401,2]
[424323468,1780768290000,-573.03,0.00035401,2]
[424323467,1780768290000,-643.95,0.00035401,2]
[424323466,1780768290000,-573.03,0.00035401,2]
[424323464,1780768290000,-572.9,0.00035401,2]
[424323412,1780768290000,-151.0,0.00035398,2]
[424323469,1780768290000,-396.06,0.00035401,2]
[424323452,1780768290000,-575.26,0.00035401,2]
[424323443,1780768290000,-482.15,0.00035398,2]
[424323459,1780768290000,-185.04,0.00035401,2]
[424323432,1780768290000,-482.15,0.00035398,2]
[424323437,1780768290000,-482.15,0.00035398,2]
[424323404,1780768290000,-151.0,0.00035398,2]
[424323406,1780768290000,-575.26,0.00035398,2]
[424323409,1780768290000,-482.15,0.00035398,2]
[424323411,1780768290000,-151.0,0.00035398,2]
[424323414,1780768290000,-575.26,0.00035398,2]
[424323416,1780768290000,-185.04,0.00035398,2]
[424323410,1780768290000,-643.95,0.00035398,2]
[424323413,1780768290000,-575.26,0.00035398,2]
[424323415,1780768290000,-151.0,0.00035398,2]
[424323418,1780768290000,-184.93,0.00035398,2]
[424323427,1780768290000,-643.95,0.00035398,2]
[424323417,1780768290000,-575.26,0.00035398,2]
[424323430,1780768290000,-396.06,0.00035398,2]
[424323407,1780768290000,-573.03,0.00035398,2]
[424323419,1780768290000,-482.15,0.00035398,2]
[424323438,1780768290000,-482.01,0.00035398,2]
[424323420,1780768290000,-396.06,0.00035398,2]
[424323433,1780768290000,-643.95,0.00035398,2]
[424323434,1780768290000,-185.04,0.00035398,2]
[424323431,1780768290000,-573.03,0.00035398,2]
[424323424,1780768290000,-396.06,0.00035398,2]
[424323440,1780768290000,-573.03,0.00035398,2]
[424323423,1780768290000,-644.0,0.00035398,2]
[424323428,1780768290000,-396.06,0.00035398,2]
[424323426,1780768290000,-396.06,0.00035398,2]
[424323421,1780768290000,-151.0,0.00035398,2]
[424323429,1780768290000,-151.0,0.00035398,2]
[424323425,1780768290000,-575.26,0.00035398,2]
[424323422,1780768290000,-573.03,0.00035398,2]
[424323514,1780768291000,-387.0,0.00035496,2]
[424323504,1780768291000,-164.0,0.00035457,11]
[424323508,1780768291000,-378.0,0.00035464,2]
[424323497,1780768291000,-482.15,0.00035404,2]
[424323499,1780768291000,-378.0,0.00035425,2]
[424323506,1780768291000,-223.73,0.0003546,69]
[424323511,1780768291000,-378.0,0.00035487,2]
[424323513,1780768291000,-20850.80701839,0.00035493,2]
[424323512,1780768291000,-1000.0,0.00035489,30]
[424323510,1780768291000,-780.0,0.00035466,3]
[424323519,1780768291000,-378.0,0.00035517,2]
[424323509,1780768291000,-378.0,0.00035464,2]
[424323517,1780768291000,-16992.64812045,0.000355,30]
[424323532,1780768291000,-25000.0,0.00035546,10]
[424323515,1780768291000,-744.33,0.00035496,7]
[424323516,1780768291000,-10158.880113,0.000355,120]
[424323520,1780768291000,-3107.64319668,0.00035519,30]
[424323522,1780768291000,-378.0,0.00035521,2]
[424323502,1780768291000,-378.0,0.00035453,2]
[424323533,1780768291000,-378.0,0.00035546,2]
[424323521,1780768291000,-25000.0,0.00035519,10]
[424323531,1780768291000,-378.0,0.00035545,2]
[424323529,1780768291000,-2146.6994,0.00035543,2]
[424323524,1780768291000,-25000.0,0.00035528,10]
[424323523,1780768291000,-378.0,0.00035522,2]
[424323528,1780768291000,-378.0,0.00035538,2]
[424323527,1780768291000,-378.0,0.00035538,2]
[424323526,1780768291000,-25000.0,0.00035537,10]
[424323518,1780768291000,-378.0,0.00035507,2]
[424323501,1780768291000,-387.0,0.00035445,2]
[424323491,1780768291000,-396.06,0.00035404,2]
[424323505,1780768291000,-378.0,0.00035459,2]
[424323525,1780768291000,-8096.2173,0.00035532,2]
[424323470,1780768291000,-185.04,0.00035401,2]
[424323472,1780768291000,-388.0,0.00035402,2]
[424323482,1780768291000,-575.26,0.00035404,2]
[424323483,1780768291000,-575.32,0.00035404,2]
[424323471,1780768291000,-151.0,0.00035401,2]
[424323484,1780768291000,-185.06,0.00035404,2]
[424323480,1780768291000,-643.95,0.00035404,2]
[424323474,1780768291000,-482.15,0.00035404,2]
[424323477,1780768291000,-643.95,0.00035404,2]
[424323473,1780768291000,-573.03,0.00035404,2]
[424323479,1780768291000,-573.03,0.00035404,2]
[424323478,1780768291000,-185.04,0.00035404,2]
[424323481,1780768291000,-573.03,0.00035404,2]
[424323475,1780768291000,-575.26,0.00035404,2]
[424323476,1780768291000,-482.15,0.00035404,2]
[424323485,1780768291000,-575.26,0.00035404,2]
[424323488,1780768291000,-185.04,0.00035404,2]
[424323489,1780768291000,-482.15,0.00035404,2]
[424323495,1780768291000,-396.06,0.00035404,2]
[424323493,1780768291000,-481.67,0.00035404,2]
[424323486,1780768291000,-482.15,0.00035404,2]
[424323494,1780768291000,-643.95,0.00035404,2]
[424323496,1780768291000,-396.06,0.00035404,2]
[424323492,1780768291000,-396.09,0.00035404,2]
[424323490,1780768291000,-482.15,0.00035404,2]
[424323498,1780768291000,-8096.2173,0.00035407,2]
[424323507,1780768291000,-378.0,0.00035463,2]
[424323500,1780768291000,-982.7085755,0.00035445,120]
[424323503,1780768291000,-387.0,0.00035454,2]
[424323530,1780768291000,-378.0,0.00035544,2]
[424323487,1780768291000,-185.04,0.00035404,2]
[424323536,1780768291000,-575.26,0.00035554,2]
[424323562,1780768291000,-25000.0,0.00035563,10]
[424323572,1780768291000,-250.0,0.00035581,7]
[424323563,1780768291000,-378.0,0.00035566,2]
[424323568,1780768291000,-25000.0,0.00035581,10]
[424323569,1780768291000,-25000.0,0.00035581,10]
[424323570,1780768291000,-250.0,0.00035581,7]
[424323576,1780768291000,-250.0,0.00035581,7]
[424323587,1780768291000,-250.0,0.00035581,7]
[424323586,1780768291000,-250.0,0.00035581,7]
[424323575,1780768291000,-250.0,0.00035581,7]
[424323584,1780768291000,-250.0,0.00035581,7]
[424323583,1780768291000,-250.0,0.00035581,7]
[424323579,1780768291000,-250.0,0.00035581,7]
[424323582,1780768291000,-250.0,0.00035581,7]
[424323581,1780768291000,-250.0,0.00035581,7]
[424323578,1780768291000,-250.0,0.00035581,7]
[424323577,1780768291000,-250.0,0.00035581,7]
[424323585,1780768291000,-250.0,0.00035581,7]
[424323580,1780768291000,-250.0,0.00035581,7]
[424323589,1780768291000,-250.0,0.00035581,7]
[424323588,1780768291000,-250.0,0.00035581,7]
[424323590,1780768291000,-250.0,0.00035581,7]
[424323591,1780768291000,-250.0,0.00035581,7]
[424323592,1780768291000,-250.0,0.00035581,7]
[424323596,1780768291000,-151.0,0.00035587,14]
[424323595,1780768291000,-1086.0,0.00035583,7]
[424323597,1780768291000,-2359.0,0.00035589,120]
[424323594,1780768291000,-393.281348,0.00035581,7]
[424323534,1780768291000,-573.03,0.00035554,2]
[424323571,1780768291000,-250.0,0.00035581,7]
[424323566,1780768291000,-7198.24,0.00035573,2]
[424323593,1780768291000,-250.0,0.00035581,7]
[424323564,1780768291000,-25000.0,0.00035572,10]
[424323567,1780768291000,-263.37843467,0.00035579,120]
[424323541,1780768291000,-151.0,0.00035554,2]
[424323538,1780768291000,-578.29,0.00035554,2]
[424323542,1780768291000,-396.06,0.00035554,2]
[424323535,1780768291000,-573.03,0.00035554,2]
[424323547,1780768291000,-482.15,0.00035554,2]
[424323537,1780768291000,-482.15,0.00035554,2]
[424323545,1780768291000,-396.09,0.00035554,2]
[424323546,1780768291000,-575.26,0.00035554,2]
[424323543,1780768291000,-643.95,0.00035554,2]
[424323539,1780768291000,-643.95,0.00035554,2]
[424323544,1780768291000,-573.03,0.00035554,2]
[424323549,1780768291000,-151.0,0.00035554,2]
[424323559,1780768291000,-573.03,0.00035559,2]
[424323540,1780768291000,-575.26,0.00035554,2]
[424323548,1780768291000,-643.95,0.00035554,2]
[424323574,1780768291000,-250.0,0.00035581,7]
[424323560,1780768291000,-185.01,0.00035559,2]
[424323565,1780768291000,-25000.0,0.00035572,10]
[424323561,1780768291000,-25000.0,0.00035563,10]
[424323558,1780768291000,-573.03,0.00035559,2]
[424323556,1780768291000,-185.04,0.00035559,2]
[424323573,1780768291000,-250.0,0.00035581,7]
[424323557,1780768291000,-482.15,0.00035559,2]
[424323555,1780768291000,-396.01,0.00035559,2]
[424323554,1780768291000,-25000.0,0.00035554,10]
[424323551,1780768291000,-151.0,0.00035554,2]
[424323550,1780768291000,-482.15,0.00035554,2]
[424323552,1780768291000,-575.26,0.00035554,2]
[424323553,1780768291000,-396.06,0.00035554,2]
[424323643,1780768292000,-500.0,0.00035615,30]
[424323636,1780768292000,-500.0,0.00035615,30]
[424323633,1780768292000,-500.0,0.00035615,30]
[424323637,1780768292000,-500.0,0.00035615,30]
[424323644,1780768292000,-542.86096189,0.00035615,30]
[424323634,1780768292000,-500.0,0.00035615,30]
[424323632,1780768292000,-500.0,0.00035615,30]
[424323630,1780768292000,-500.0,0.00035615,30]
[424323639,1780768292000,-500.0,0.00035615,30]
[424323631,1780768292000,-500.0,0.00035615,30]
[424323635,1780768292000,-500.0,0.00035615,30]
[424323629,1780768292000,-500.0,0.00035615,30]
[424323646,1780768292000,-516.37811738,0.00035615,30]
[424323641,1780768292000,-500.0,0.00035615,30]
[424323642,1780768292000,-500.0,0.00035615,30]
[424323638,1780768292000,-500.0,0.00035615,30]
[424323645,1780768292000,-500.0,0.00035615,30]
[424323656,1780768292000,-165.83916485,0.00035616,30]
[424323648,1780768292000,-150.0,0.00035616,120]
[424323647,1780768292000,-2000.0,0.00035616,30]
[424323654,1780768292000,-25000.0,0.00035616,10]
[424323652,1780768292000,-25000.0,0.00035616,10]
[424323653,1780768292000,-25000.0,0.00035616,10]
[424323651,1780768292000,-1000.0,0.00035616,120]
[424323628,1780768292000,-208.46582216,0.00035615,30]
[424323649,1780768292000,-378.0,0.00035616,2]
[424323640,1780768292000,-500.0,0.00035615,30]
[424323626,1780768292000,-500.0,0.00035615,30]
[424323607,1780768292000,-378.0,0.00035596,2]
[424323620,1780768292000,-500.0,0.00035615,30]
[424323650,1780768292000,-332.76234158,0.00035616,30]
[424323600,1780768292000,-2461.0,0.00035589,120]
[424323599,1780768292000,-378.0,0.00035589,2]
[424323598,1780768292000,-387.0,0.00035589,2]
[424323612,1780768292000,-201.602421,0.000356,14]
[424323602,1780768292000,-25000.0,0.0003559,10]
[424323613,1780768292000,-176.497822,0.000356,14]
[424323610,1780768292000,-25000.0,0.00035598,10]
[424323601,1780768292000,-264.85077725,0.00035589,120]
[424323605,1780768292000,-378.0,0.00035593,2]
[424323604,1780768292000,-378.0,0.00035591,2]
[424323609,1780768292000,-378.0,0.00035598,2]
[424323627,1780768292000,-507.06611295,0.00035615,30]
[424323606,1780768292000,-679.87,0.00035595,120]
[424323611,1780768292000,-25000.0,0.00035598,10]
[424323614,1780768292000,-1000.0,0.00035601,30]
[424323625,1780768292000,-500.0,0.00035615,30]
[424323616,1780768292000,-25000.0,0.00035607,10]
[424323619,1780768292000,-378.0,0.00035612,2]
[424323622,1780768292000,-500.0,0.00035615,30]
[424323615,1780768292000,-25000.0,0.00035607,10]
[424323624,1780768292000,-500.0,0.00035615,30]
[424323618,1780768292000,-4521.55094502,0.0003561,2]
[424323621,1780768292000,-500.0,0.00035615,30]
[424323617,1780768292000,-151277.01629543,0.0003561,2]
[424323623,1780768292000,-500.0,0.00035615,30]
[424323608,1780768292000,-378.0,0.00035598,2]
[424323655,1780768292000,-25000.0,0.00035616,10]
[424323603,1780768292000,-25000.0,0.0003559,10]
[424323658,1780768292000,-1000.0,0.00035616,120]
[424323683,1780768292000,-500.0,0.00035616,7]
[424323684,1780768292000,-500.0,0.00035616,7]
[424323685,1780768292000,-500.0,0.00035616,7]
[424323687,1780768292000,-500.0,0.00035616,7]
[424323694,1780768292000,-500.0,0.00035616,7]
[424323696,1780768292000,-500.0,0.00035616,7]
[424323698,1780768292000,-500.0,0.00035616,7]
[424323697,1780768292000,-500.0,0.00035616,7]
[424323700,1780768292000,-1203.25265616,0.00035616,7]
[424323701,1780768292000,-1203.25265616,0.00035616,7]
[424323699,1780768292000,-1203.25265616,0.00035616,7]
[424323695,1780768292000,-500.0,0.00035616,7]
[424323688,1780768292000,-500.0,0.00035616,7]
[424323705,1780768292000,-1203.25265616,0.00035616,7]
[424323706,1780768292000,-1203.25265616,0.00035616,7]
[424323702,1780768292000,-1203.25265616,0.00035616,7]
[424323703,1780768292000,-1203.25265616,0.00035616,7]
[424323708,1780768292000,-1203.25265616,0.00035616,7]
[424323707,1780768292000,-1203.25265616,0.00035616,7]
[424323709,1780768292000,-1203.25265616,0.00035616,7]
[424323711,1780768292000,-1203.25265616,0.00035616,7]
[424323713,1780768292000,-1203.25265616,0.00035616,7]
[424323657,1780768292000,-25000.0,0.00035616,10]
[424323710,1780768292000,-1203.25265616,0.00035616,7]
[424323712,1780768292000,-1203.25265616,0.00035616,7]
[424323715,1780768292000,-1203.25265616,0.00035616,7]
[424323704,1780768292000,-1203.25265616,0.00035616,7]
[424323686,1780768292000,-500.0,0.00035616,7]
[424323714,1780768292000,-1203.25265616,0.00035616,7]
[424323692,1780768292000,-500.0,0.00035616,7]
[424323681,1780768292000,-500.0,0.00035616,7]
[424323667,1780768292000,-500.0,0.00035616,7]
[424323665,1780768292000,-500.0,0.00035616,7]
[424323669,1780768292000,-500.0,0.00035616,7]
[424323659,1780768292000,-1562.0,0.00035616,30]
[424323661,1780768292000,-600.0,0.00035616,120]
[424323660,1780768292000,-600.0,0.00035616,120]
[424323666,1780768292000,-500.0,0.00035616,7]
[424323662,1780768292000,-800.0,0.00035616,120]
[424323663,1780768292000,-500.0,0.00035616,7]
[424323664,1780768292000,-500.0,0.00035616,7]
[424323670,1780768292000,-500.0,0.00035616,7]
[424323673,1780768292000,-500.0,0.00035616,7]
[424323668,1780768292000,-500.0,0.00035616,7]
[424323676,1780768292000,-350.0,0.00035616,7]
[424323675,1780768292000,-500.0,0.00035616,7]
[424323690,1780768292000,-500.0,0.00035616,7]
[424323689,1780768292000,-500.0,0.00035616,7]
[424323682,1780768292000,-500.0,0.00035616,7]
[424323680,1780768292000,-500.0,0.00035616,7]
[424323693,1780768292000,-500.0,0.00035616,7]
[424323672,1780768292000,-500.0,0.00035616,7]
[424323674,1780768292000,-500.0,0.00035616,7]
[424323671,1780768292000,-500.0,0.00035616,7]
[424323691,1780768292000,-500.0,0.00035616,7]
[424323678,1780768292000,-500.0,0.00035616,7]
[424323679,1780768292000,-500.0,0.00035616,7]
[424323677,1780768292000,-500.0,0.00035616,7]
[424323743,1780768293000,-1237.34481476,0.00035616,7]
[424323749,1780768293000,-1237.34481476,0.00035616,7]
[424323752,1780768293000,-1237.34481476,0.00035616,7]
[424323753,1780768293000,-1237.34481476,0.00035616,7]
[424323745,1780768293000,-1237.34481476,0.00035616,7]
[424323746,1780768293000,-1237.34481476,0.00035616,7]
[424323754,1780768293000,-1237.34481476,0.00035616,7]
[424323748,1780768293000,-1237.34481476,0.00035616,7]
[424323750,1780768293000,-1237.34481476,0.00035616,7]
[424323747,1780768293000,-1237.34481476,0.00035616,7]
[424323755,1780768293000,-1252.01,0.00035616,2]
[424323761,1780768293000,-269.157051,0.00035616,2]
[424323756,1780768293000,-269.157051,0.00035616,2]
[424323758,1780768293000,-269.157051,0.00035616,2]
[424323760,1780768293000,-269.157051,0.00035616,2]
[424323759,1780768293000,-269.157051,0.00035616,2]
[424323757,1780768293000,-269.157051,0.00035616,2]
[424323762,1780768293000,-269.157051,0.00035616,2]
[424323768,1780768293000,-269.157051,0.00035616,2]
[424323763,1780768293000,-269.157051,0.00035616,2]
[424323767,1780768293000,-269.157051,0.00035616,2]
[424323744,1780768293000,-1237.34481476,0.00035616,7]
[424323751,1780768293000,-1237.34481476,0.00035616,7]
[424323742,1780768293000,-1203.25265616,0.00035616,7]
[424323724,1780768293000,-1203.25265616,0.00035616,7]
[424323736,1780768293000,-1203.25265616,0.00035616,7]
[424323717,1780768293000,-1203.25265616,0.00035616,7]
[424323719,1780768293000,-1203.25265616,0.00035616,7]
[424323718,1780768293000,-1203.25265616,0.00035616,7]
[424323716,1780768293000,-1203.25265616,0.00035616,7]
[424323721,1780768293000,-1203.25265616,0.00035616,7]
[424323725,1780768293000,-1203.25265616,0.00035616,7]
[424323732,1780768293000,-1203.25265616,0.00035616,7]
[424323726,1780768293000,-1203.25265616,0.00035616,7]
[424323720,1780768293000,-1203.25265616,0.00035616,7]
[424323722,1780768293000,-1203.25265616,0.00035616,7]
[424323731,1780768293000,-1203.25265616,0.00035616,7]
[424323727,1780768293000,-1203.25265616,0.00035616,7]
[424323729,1780768293000,-1203.25265616,0.00035616,7]
[424323728,1780768293000,-1203.25265616,0.00035616,7]
[424323723,1780768293000,-1203.25265616,0.00035616,7]